[Event "Titled Tuesday Blitz May 2 Late 2023"]
[White "Osmonbekov, Talaibek"]
[Black "Roebers, Eline"]
[WhiteFideId "2017253"]
[BlackFideId "1058401"]
[WhiteElo "2135"]
[BlackElo "2356"]
[Result "1-0"]
[Round "01"]
[TimeControl "180+2"]
[Date "2023.05.02"]
[WhiteClock "0:00:00"]
[BlackClock "0:00:00"]

1. d4 {[%clk 0:00:01]}  f5 {[%clk 0:00:01]} 2. e4 {[%clk 0:00:01]}  fxe4 {[%clk 0:00:01]} 3. Nc3 {[%clk 0:00:01]}  Nf6 {[%clk 0:00:01]} 4. Bg5 {[%clk 0:00:01]}  g6 {[%clk 0:00:01]} 5. Qd2 {[%clk 0:00:01]}  d5 {[%clk 0:00:01]} 6. f3 {[%clk 0:00:01]}  Bf5 {[%clk 0:00:01]} 7. O-O-O {[%clk 0:00:01]}  Nbd7 {[%clk 0:00:01]} 8. g4 {[%clk 0:00:01]}  Be6 {[%clk 0:00:01]} 9. fxe4 {[%clk 0:00:01]}  dxe4 {[%clk 0:00:01]} 10. d5 {[%clk 0:00:01]}  Bxg4 {[%clk 0:00:01]} 11. Be2 {[%clk 0:00:01]}  Bxe2 {[%clk 0:00:01]} 12. Ngxe2 {[%clk 0:00:01]}  h6 {[%clk 0:00:01]} 13. Nf4 {[%clk 0:00:01]}  hxg5 {[%clk 0:00:01]} 14. Ne6 {[%clk 0:00:01]}  Qc8 {[%clk 0:00:01]} 15. Nb5 {[%clk 0:00:01]}  c6 {[%clk 0:00:01]} 16. Nbc7+ {[%clk 0:00:01]}  Kf7 {[%clk 0:00:01]} 17. Nxa8 {[%clk 0:00:01]}  Qxa8 {[%clk 0:00:01]} 18. Nxg5+ {[%clk 0:00:01]}  Kg8 {[%clk 0:00:01]} 19. dxc6 {[%clk 0:00:01]}  bxc6 {[%clk 0:00:01]} 20. Qd4 {[%clk 0:00:01]}  Bh6 {[%clk 0:00:01]} 21. Qc4+ {[%clk 0:00:00]}  Nd5 {[%clk 0:00:01]} 22. h4 {[%clk 0:00:00]}  e3 {[%clk 0:00:00]} 23. Qe4 {[%clk 0:00:00]}  Bxg5 {[%clk 0:00:00]} 24. Qxg6+ {[%clk 0:00:00]}  Kf8 {[%clk 0:00:00]} 25. hxg5 {[%clk 0:00:00]}  Rg8 {[%clk 0:00:00]} 26. Rdf1+ {[%clk 0:00:00]}  N7f6 {[%clk 0:00:00]} 27. Qh6+ {[%clk 0:00:00]}  Ke8 {[%clk 0:00:00]} 28. gxf6 {[%clk 0:00:00]}  exf6 {[%clk 0:00:00]} 29. Qh7 {[%clk 0:00:00]}  Rf8 {[%clk 0:00:00]} 30. c4 {[%clk 0:00:00]}  Ne7 {[%clk 0:00:00]} 31. Re1 {[%clk 0:00:00]}  Rf7 {[%clk 0:00:00]} 32. Qh8+ {[%clk 0:00:00]}  Rf8 {[%clk 0:00:00]} 33. Qh5+ {[%clk 0:00:00]}  Kd7 {[%clk 0:00:00]} 34. Rxe3 {[%clk 0:00:00]} 1-0


[Site "https://www.chess.com"]

[Event "Titled Tuesday Blitz May 2 Late 2023"]
[White "Goncalves, Davi Sulzbacher"]
[Black "Lopez Perdomo, Juan David"]
[WhiteFideId "2154510"]
[BlackFideId "4405137"]
[WhiteElo "2182"]
[BlackElo "1965"]
[Result "0-1"]
[Round "01"]
[TimeControl "180+2"]
[Date "2023.05.02"]
[WhiteClock "0:00:00"]
[BlackClock "0:00:00"]

1. c4 {[%clk 0:00:01]}  e6 {[%clk 0:00:01]} 2. d4 {[%clk 0:00:01]}  c5 {[%clk 0:00:01]} 3. d5 {[%clk 0:00:01]}  exd5 {[%clk 0:00:01]} 4. cxd5 {[%clk 0:00:01]}  d6 {[%clk 0:00:01]} 5. Nc3 {[%clk 0:00:01]}  Nf6 {[%clk 0:00:01]} 6. g3 {[%clk 0:00:01]}  g6 {[%clk 0:00:01]} 7. Bg2 {[%clk 0:00:01]}  Bg7 {[%clk 0:00:01]} 8. Nf3 {[%clk 0:00:01]}  h5 {[%clk 0:00:01]} 9. Bg5 {[%clk 0:00:01]}  O-O {[%clk 0:00:01]} 10. O-O {[%clk 0:00:01]}  Re8 {[%clk 0:00:01]} 11. e4 {[%clk 0:00:01]}  Qa5 {[%clk 0:00:01]} 12. Re1 {[%clk 0:00:01]}  b5 {[%clk 0:00:01]} 13. e5 {[%clk 0:00:01]}  dxe5 {[%clk 0:00:01]} 14. Nxe5 {[%clk 0:00:01]}  Bb7 {[%clk 0:00:01]} 15. a4 {[%clk 0:00:01]}  b4 {[%clk 0:00:01]} 16. Nb5 {[%clk 0:00:01]}  Nbd7 {[%clk 0:00:00]} 17. Nc4 {[%clk 0:00:01]}  Rxe1+ {[%clk 0:00:00]} 18. Qxe1 {[%clk 0:00:01]}  Qd8 {[%clk 0:00:00]} 19. Nbd6 {[%clk 0:00:00]}  Ba6 {[%clk 0:00:00]} 20. Rc1 {[%clk 0:00:00]}  Qf8 {[%clk 0:00:00]} 21. Qd2 {[%clk 0:00:00]}  Nb6 {[%clk 0:00:00]} 22. Nxb6 {[%clk 0:00:00]}  axb6 {[%clk 0:00:00]} 23. Ne4 {[%clk 0:00:00]}  Nxe4 {[%clk 0:00:00]} 24. Bxe4 {[%clk 0:00:00]}  Qd6 {[%clk 0:00:00]} 25. Bf4 {[%clk 0:00:00]}  Be5 {[%clk 0:00:00]} 26. Bxe5 {[%clk 0:00:00]}  Qxe5 {[%clk 0:00:00]} 27. Re1 {[%clk 0:00:00]}  Re8 {[%clk 0:00:00]} 28. d6 {[%clk 0:00:00]}  Rd8 {[%clk 0:00:00]} 29. Bxg6 {[%clk 0:00:00]}  Qxd6 {[%clk 0:00:00]} 30. Qd3 {[%clk 0:00:00]}  Bxd3 {[%clk 0:00:00]} 0-1


[Site "https://www.chess.com"]

[Event "Titled Tuesday Blitz May 2 Late 2023"]
[White "Tsotsonava, Elene"]
[Black "Krishnan, Varun"]
[WhiteFideId "13615939"]
[BlackFideId "5054508"]
[WhiteElo "1829"]
[BlackElo "2341"]
[Result "0-1"]
[Round "01"]
[TimeControl "180+2"]
[Date "2023.05.02"]
[WhiteClock "0:00:00"]
[BlackClock "0:00:00"]

1. e4 {[%clk 0:00:01]}  e5 {[%clk 0:00:01]} 2. Nf3 {[%clk 0:00:01]}  Nc6 {[%clk 0:00:01]} 3. Bb5 {[%clk 0:00:01]}  a6 {[%clk 0:00:01]} 4. Ba4 {[%clk 0:00:01]}  Nf6 {[%clk 0:00:01]} 5. O-O {[%clk 0:00:01]}  Be7 {[%clk 0:00:01]} 6. Re1 {[%clk 0:00:01]}  b5 {[%clk 0:00:01]} 7. Bb3 {[%clk 0:00:01]}  O-O {[%clk 0:00:01]} 8. a4 {[%clk 0:00:01]}  Bb7 {[%clk 0:00:01]} 9. d3 {[%clk 0:00:01]}  d6 {[%clk 0:00:01]} 10. Bd2 {[%clk 0:00:01]}  b4 {[%clk 0:00:01]} 11. Bg5 {[%clk 0:00:01]}  Na5 {[%clk 0:00:01]} 12. Ba2 {[%clk 0:00:01]}  c5 {[%clk 0:00:01]} 13. Nbd2 {[%clk 0:00:01]}  Bc6 {[%clk 0:00:01]} 14. Nc4 {[%clk 0:00:01]}  Nxc4 {[%clk 0:00:01]} 15. Bxc4 {[%clk 0:00:01]}  Nd7 {[%clk 0:00:01]} 16. Bxe7 {[%clk 0:00:01]}  Qxe7 {[%clk 0:00:01]} 17. a5 {[%clk 0:00:01]}  Nf6 {[%clk 0:00:01]} 18. Nd2 {[%clk 0:00:01]}  Bb5 {[%clk 0:00:01]} 19. Qe2 {[%clk 0:00:01]}  Rfd8 {[%clk 0:00:01]} 20. Nf1 {[%clk 0:00:01]}  Qb7 {[%clk 0:00:01]} 21. f3 {[%clk 0:00:01]}  Ne8 {[%clk 0:00:01]} 22. Bd5 {[%clk 0:00:01]}  Bc6 {[%clk 0:00:01]} 23. Bc4 {[%clk 0:00:01]}  Nc7 {[%clk 0:00:01]} 24. Ne3 {[%clk 0:00:01]}  Ne6 {[%clk 0:00:01]} 25. c3 {[%clk 0:00:01]}  Nf4 {[%clk 0:00:01]} 26. Qf2 {[%clk 0:00:01]}  Bb5 {[%clk 0:00:01]} 27. Qd2 {[%clk 0:00:01]}  Bxc4 {[%clk 0:00:01]} 28. Nxc4 {[%clk 0:00:01]}  Qe7 {[%clk 0:00:01]} 29. g3 {[%clk 0:00:01]}  Ne6 {[%clk 0:00:01]} 30. cxb4 {[%clk 0:00:01]}  cxb4 {[%clk 0:00:01]} 31. Nb6 {[%clk 0:00:01]}  Rab8 {[%clk 0:00:01]} 32. Qxb4 {[%clk 0:00:01]}  Nc5 {[%clk 0:00:01]} 33. d4 {[%clk 0:00:01]}  Nd3 {[%clk 0:00:01]} 34. Qc4 {[%clk 0:00:01]}  Nxe1 {[%clk 0:00:01]} 35. Rxe1 {[%clk 0:00:01]}  exd4 {[%clk 0:00:01]} 36. Qxa6 {[%clk 0:00:01]}  d5 {[%clk 0:00:01]} 37. e5 {[%clk 0:00:01]}  Qc5 {[%clk 0:00:00]} 38. Rb1 {[%clk 0:00:00]}  d3+ {[%clk 0:00:00]} 39. Kh1 {[%clk 0:00:00]}  Qe3 {[%clk 0:00:00]} 40. Rf1 {[%clk 0:00:00]}  Re8 {[%clk 0:00:00]} 41. f4 {[%clk 0:00:00]}  Qe4+ {[%clk 0:00:00]} 42. Kg1 {[%clk 0:00:00]}  Qe3+ {[%clk 0:00:00]} 43. Kh1 {[%clk 0:00:00]}  Re6 {[%clk 0:00:00]} 44. Qb5 {[%clk 0:00:00]}  Qe2 {[%clk 0:00:00]} 45. Kg1 {[%clk 0:00:00]}  Rh6 {[%clk 0:00:00]} 46. Rf2 {[%clk 0:00:00]}  Qe1+ {[%clk 0:00:00]} 47. Rf1 {[%clk 0:00:00]}  Qe3+ {[%clk 0:00:00]} 48. Kg2 {[%clk 0:00:00]}  Qe2+ {[%clk 0:00:00]} 49. Rf2 {[%clk 0:00:00]}  Rxh2+ {[%clk 0:00:00]} 50. Kxh2 {[%clk 0:00:00]}  Qxf2+ {[%clk 0:00:00]} 51. Kh3 {[%clk 0:00:00]}  d2 {[%clk 0:00:00]} 52. Qxd5 {[%clk 0:00:00]}  Qf1+ {[%clk 0:00:00]} 53. Kh4 {[%clk 0:00:00]}  d1=Q {[%clk 0:00:00]} 54. Qd6 {[%clk 0:00:00]}  Qh1+ {[%clk 0:00:00]} 55. Kg5 {[%clk 0:00:00]}  Qhh5# {[%clk 0:00:00]} 0-1


[Site "https://www.chess.com"]

[Event "Titled Tuesday Blitz May 2 Late 2023"]
[White "Vovk, Orest"]
[Black "Srdanovic, Jovana"]
[WhiteFideId "14113490"]
[BlackFideId "954810"]
[WhiteElo "2215"]
[BlackElo "2145"]
[Result "1-0"]
[Round "01"]
[TimeControl "180+2"]
[Date "2023.05.02"]
[WhiteClock "0:00:00"]
[BlackClock "0:00:00"]

1. h4 {[%clk 0:00:01]}  c5 {[%clk 0:00:01]} 2. h5 {[%clk 0:00:01]}  d5 {[%clk 0:00:01]} 3. e4 {[%clk 0:00:01]}  dxe4 {[%clk 0:00:01]} 4. Nc3 {[%clk 0:00:01]}  Bf5 {[%clk 0:00:01]} 5. Rh4 {[%clk 0:00:01]}  e5 {[%clk 0:00:01]} 6. g3 {[%clk 0:00:01]}  Be7 {[%clk 0:00:01]} 7. Bb5+ {[%clk 0:00:01]}  Nd7 {[%clk 0:00:01]} 8. Rh1 {[%clk 0:00:01]}  a6 {[%clk 0:00:01]} 9. Be2 {[%clk 0:00:01]}  h6 {[%clk 0:00:01]} 10. Bg4 {[%clk 0:00:01]}  Bh7 {[%clk 0:00:01]} 11. Qe2 {[%clk 0:00:01]}  Ngf6 {[%clk 0:00:01]} 12. Bh3 {[%clk 0:00:01]}  O-O {[%clk 0:00:01]} 13. Bg2 {[%clk 0:00:01]}  Qc7 {[%clk 0:00:01]} 14. Nxe4 {[%clk 0:00:01]}  Nxe4 {[%clk 0:00:01]} 15. Bxe4 {[%clk 0:00:01]}  f5 {[%clk 0:00:01]} 16. Bd5+ {[%clk 0:00:01]}  Kh8 {[%clk 0:00:01]} 17. d3 {[%clk 0:00:01]}  Nf6 {[%clk 0:00:01]} 18. Bg2 {[%clk 0:00:01]}  Bd6 {[%clk 0:00:01]} 19. Bd2 {[%clk 0:00:01]}  Rae8 {[%clk 0:00:00]} 20. O-O-O {[%clk 0:00:01]}  b5 {[%clk 0:00:00]} 21. Nf3 {[%clk 0:00:00]}  b4 {[%clk 0:00:00]} 22. Nh4 {[%clk 0:00:00]}  e4 {[%clk 0:00:00]} 23. Ng6+ {[%clk 0:00:00]}  Bxg6 {[%clk 0:00:00]} 24. hxg6 {[%clk 0:00:00]}  Be5 {[%clk 0:00:00]} 25. dxe4 {[%clk 0:00:00]}  Qa5 {[%clk 0:00:00]} 26. Qc4 {[%clk 0:00:00]}  Ng8 {[%clk 0:00:00]} 27. f4 {[%clk 0:00:00]}  Bd4 {[%clk 0:00:00]} 28. e5 {[%clk 0:00:00]}  Ne7 {[%clk 0:00:00]} 29. Bxb4 {[%clk 0:00:00]}  cxb4 {[%clk 0:00:00]} 30. Rxd4 {[%clk 0:00:00]}  Rc8 {[%clk 0:00:00]} 31. Qb3 {[%clk 0:00:00]}  Nxg6 {[%clk 0:00:00]} 32. Rd6 {[%clk 0:00:00]}  Kh7 {[%clk 0:00:00]} 33. Bb7 {[%clk 0:00:00]}  Rc5 {[%clk 0:00:00]} 34. Bd5 {[%clk 0:00:00]} 1-0


[Site "https://www.chess.com"]

[Event "Titled Tuesday Blitz May 2 Late 2023"]
[White "Kourkoulos-Arditis, Stamatis"]
[Black "Quirke, Jeffrey"]
[WhiteFideId "4221990"]
[BlackFideId "2013029"]
[WhiteElo "2400"]
[BlackElo "2007"]
[Result "1-0"]
[Round "01"]
[TimeControl "180+2"]
[Date "2023.05.02"]
[WhiteClock "0:00:00"]
[BlackClock "0:00:00"]

1. e4 {[%clk 0:00:01]}  Nf6 {[%clk 0:00:01]} 2. e5 {[%clk 0:00:01]}  Nd5 {[%clk 0:00:01]} 3. d4 {[%clk 0:00:01]}  d6 {[%clk 0:00:01]} 4. Nf3 {[%clk 0:00:01]}  dxe5 {[%clk 0:00:01]} 5. Nxe5 {[%clk 0:00:01]}  c6 {[%clk 0:00:01]} 6. Be2 {[%clk 0:00:01]}  Bf5 {[%clk 0:00:01]} 7. O-O {[%clk 0:00:01]}  Nd7 {[%clk 0:00:01]} 8. Nf3 {[%clk 0:00:01]}  e6 {[%clk 0:00:01]} 9. c4 {[%clk 0:00:01]}  N5f6 {[%clk 0:00:01]} 10. Nc3 {[%clk 0:00:01]}  Bd6 {[%clk 0:00:01]} 11. h3 {[%clk 0:00:01]}  O-O {[%clk 0:00:01]} 12. Be3 {[%clk 0:00:01]}  h6 {[%clk 0:00:01]} 13. Bd3 {[%clk 0:00:01]}  Bxd3 {[%clk 0:00:01]} 14. Qxd3 {[%clk 0:00:01]}  Qc7 {[%clk 0:00:01]} 15. Rad1 {[%clk 0:00:01]}  Rad8 {[%clk 0:00:01]} 16. Rfe1 {[%clk 0:00:01]}  Rfe8 {[%clk 0:00:01]} 17. Bc1 {[%clk 0:00:01]}  Bf4 {[%clk 0:00:01]} 18. Bxf4 {[%clk 0:00:01]}  Qxf4 {[%clk 0:00:01]} 19. g3 {[%clk 0:00:01]}  Qf5 {[%clk 0:00:01]} 20. Qxf5 {[%clk 0:00:01]}  exf5 {[%clk 0:00:01]} 21. Kg2 {[%clk 0:00:01]}  Ne4 {[%clk 0:00:00]} 22. Ne2 {[%clk 0:00:01]}  a5 {[%clk 0:00:00]} 23. Nf4 {[%clk 0:00:01]}  a4 {[%clk 0:00:00]} 24. Re3 {[%clk 0:00:00]}  Nb6 {[%clk 0:00:00]} 25. c5 {[%clk 0:00:00]}  Nd5 {[%clk 0:00:00]} 26. Nxd5 {[%clk 0:00:00]}  Rxd5 {[%clk 0:00:00]} 27. Rde1 {[%clk 0:00:00]}  Red8 {[%clk 0:00:00]} 28. Ra3 {[%clk 0:00:00]}  g5 {[%clk 0:00:00]} 29. Rxa4 {[%clk 0:00:00]}  Nf6 {[%clk 0:00:00]} 30. Rb4 {[%clk 0:00:00]}  R8d7 {[%clk 0:00:00]} 31. Re5 {[%clk 0:00:00]}  g4 {[%clk 0:00:00]} 32. Nh4 {[%clk 0:00:00]}  Rxe5 {[%clk 0:00:00]} 33. dxe5 {[%clk 0:00:00]}  Nd5 {[%clk 0:00:00]} 34. Rd4 {[%clk 0:00:00]}  f4 {[%clk 0:00:00]} 35. hxg4 {[%clk 0:00:00]}  fxg3 {[%clk 0:00:00]} 36. Kxg3 {[%clk 0:00:00]}  Re7 {[%clk 0:00:00]} 37. f4 {[%clk 0:00:00]}  Re8 {[%clk 0:00:00]} 38. Nf5 {[%clk 0:00:00]}  Ra8 {[%clk 0:00:00]} 39. a3 {[%clk 0:00:00]} 1-0


[Site "https://www.chess.com"]

[Event "Titled Tuesday Blitz May 2 Late 2023"]
[White "Cueto, Jonny"]
[Black "Richter, Paul"]
[WhiteFideId "3300145"]
[BlackFideId "2046350"]
[WhiteElo "2234"]
[BlackElo "2171"]
[Result "1/2-1/2"]
[Round "01"]
[TimeControl "180+2"]
[Date "2023.05.02"]
[WhiteClock "0:00:08"]
[BlackClock "0:00:04"]

1. d4 {[%clk 0:03:00]}  Nf6 {[%clk 0:02:59]} 2. Bf4 {[%clk 0:03:01]}  g6 {[%clk 0:02:59]} 3. Nc3 {[%clk 0:03:01]}  d5 {[%clk 0:02:58]} 4. e3 {[%clk 0:03:00]}  Bg7 {[%clk 0:02:58]} 5. h4 {[%clk 0:03:00]}  h5 {[%clk 0:02:58]} 6. Be2 {[%clk 0:03:00]}  O-O {[%clk 0:02:56]} 7. Nf3 {[%clk 0:03:00]}  Bg4 {[%clk 0:02:55]} 8. Ne5 {[%clk 0:02:58]}  Bxe2 {[%clk 0:02:54]} 9. Qxe2 {[%clk 0:02:59]}  Nbd7 {[%clk 0:02:54]} 10. Nd3 {[%clk 0:02:50]}  c6 {[%clk 0:02:41]} 11. O-O {[%clk 0:02:48]}  Ne4 {[%clk 0:02:36]} 12. Nxe4 {[%clk 0:02:36]}  dxe4 {[%clk 0:02:37]} 13. Nc5 {[%clk 0:02:37]}  Nxc5 {[%clk 0:02:34]} 14. dxc5 {[%clk 0:02:37]}  Qd5 {[%clk 0:02:25]} 15. Rfd1 {[%clk 0:02:36]}  Qxc5 {[%clk 0:02:24]} 16. Rd7 {[%clk 0:02:36]}  b5 {[%clk 0:02:10]} 17. c3 {[%clk 0:02:21]}  e5 {[%clk 0:01:47]} 18. Bg3 {[%clk 0:02:07]}  Bf6 {[%clk 0:01:47]} 19. Rad1 {[%clk 0:02:00]}  Rad8 {[%clk 0:01:41]} 20. R1d6 {[%clk 0:01:51]}  Rxd7 {[%clk 0:01:36]} 21. Rxd7 {[%clk 0:01:51]}  Rd8 {[%clk 0:01:25]} 22. Qd2 {[%clk 0:01:51]}  Rxd7 {[%clk 0:01:19]} 23. Qxd7 {[%clk 0:01:52]}  a5 {[%clk 0:01:14]} 24. Kh2 {[%clk 0:01:40]}  Qd5 {[%clk 0:01:04]} 25. Qe8+ {[%clk 0:01:15]}  Kg7 {[%clk 0:01:04]} 26. Qa8 {[%clk 0:01:11]}  a4 {[%clk 0:01:03]} 27. Qe8 {[%clk 0:01:10]}  Qc5 {[%clk 0:00:35]} 28. Qd7 {[%clk 0:01:06]}  Qc4 {[%clk 0:00:35]} 29. Qe8 {[%clk 0:01:00]}  Qd5 {[%clk 0:00:34]} 30. Qb8 {[%clk 0:00:51]}  Kh7 {[%clk 0:00:31]} 31. Qc7 {[%clk 0:00:47]}  Kg8 {[%clk 0:00:29]} 32. Qb8+ {[%clk 0:00:47]}  Kg7 {[%clk 0:00:29]} 33. Qc7 {[%clk 0:00:47]}  Kh7 {[%clk 0:00:28]} 34. Qb8 {[%clk 0:00:45]}  Qd8 {[%clk 0:00:24]} 35. Qb7 {[%clk 0:00:41]}  Qe8 {[%clk 0:00:23]} 36. Qc7 {[%clk 0:00:40]}  Qe6 {[%clk 0:00:19]} 37. Qb8 {[%clk 0:00:34]}  Qxa2 {[%clk 0:00:16]} 38. Bxe5 {[%clk 0:00:32]}  Bxe5+ {[%clk 0:00:17]} 39. Qxe5 {[%clk 0:00:33]}  Qe6 {[%clk 0:00:17]} 40. Qb8 {[%clk 0:00:30]}  Qf6 {[%clk 0:00:16]} 41. Kg3 {[%clk 0:00:26]}  Qf5 {[%clk 0:00:13]} 42. Qd8 {[%clk 0:00:19]}  c5 {[%clk 0:00:11]} 43. Qe7 {[%clk 0:00:16]}  Kg7 {[%clk 0:00:09]} 44. Qd6 {[%clk 0:00:14]}  c4 {[%clk 0:00:07]} 45. Qe7 {[%clk 0:00:13]}  Kg8 {[%clk 0:00:05]} 46. Qd8+ {[%clk 0:00:12]}  Kh7 {[%clk 0:00:06]} 47. Qe7 {[%clk 0:00:13]}  Kg7 {[%clk 0:00:06]} 48. Qd8 {[%clk 0:00:13]}  Qc5 {[%clk 0:00:04]} 49. Qa8 {[%clk 0:00:09]}  Qd6+ {[%clk 0:00:04]} 50. Kh3 {[%clk 0:00:07]}  Qe5 {[%clk 0:00:05]} 51. Qd8 {[%clk 0:00:04]}  Qe6+ {[%clk 0:00:04]} 52. Kh2 {[%clk 0:00:04]}  Qf6 {[%clk 0:00:04]} 53. Qd5 {[%clk 0:00:04]}  Qxh4+ {[%clk 0:00:04]} 54. Kg1 {[%clk 0:00:05]}  Qe7 {[%clk 0:00:03]} 55. Qxb5 {[%clk 0:00:05]}  a3 {[%clk 0:00:02]} 56. bxa3 {[%clk 0:00:05]}  Qxa3 {[%clk 0:00:03]} 57. Qxc4 {[%clk 0:00:05]}  Qe7 {[%clk 0:00:02]} 58. Qd4+ {[%clk 0:00:05]}  Kh7 {[%clk 0:00:02]} 59. c4 {[%clk 0:00:06]}  h4 {[%clk 0:00:02]} 60. c5 {[%clk 0:00:06]}  Qg5 {[%clk 0:00:03]} 61. Qxe4 {[%clk 0:00:05]}  Qxc5 {[%clk 0:00:02]} 62. Qxh4+ {[%clk 0:00:05]}  Kg8 {[%clk 0:00:03]} 63. Qg3 {[%clk 0:00:05]}  Qc1+ {[%clk 0:00:03]} 64. Kh2 {[%clk 0:00:05]}  Qd2 {[%clk 0:00:04]} 65. Qf3 {[%clk 0:00:05]}  Qd6+ {[%clk 0:00:04]} 66. Qg3 {[%clk 0:00:05]}  Qd2 {[%clk 0:00:04]} 67. Qf3 {[%clk 0:00:05]}  Qd6+ {[%clk 0:00:03]} 68. g3 {[%clk 0:00:05]}  Qd2 {[%clk 0:00:03]} 69. Kg2 {[%clk 0:00:05]}  Qd6 {[%clk 0:00:03]} 70. Qa8+ {[%clk 0:00:06]}  Kh7 {[%clk 0:00:03]} 71. Qf3 {[%clk 0:00:07]}  Kg8 {[%clk 0:00:03]} 72. e4 {[%clk 0:00:07]}  Qe6 {[%clk 0:00:03]} 73. Qf4 {[%clk 0:00:07]}  Qe7 {[%clk 0:00:03]} 74. f3 {[%clk 0:00:07]}  Qe6 {[%clk 0:00:03]} 75. g4 {[%clk 0:00:08]}  Qa2+ {[%clk 0:00:03]} 76. Kg3 {[%clk 0:00:08]}  Qb1 {[%clk 0:00:04]} 77. Qe3 {[%clk 0:00:08]}  Qb8+ {[%clk 0:00:03]} 78. Kf2 {[%clk 0:00:07]}  Qe8 {[%clk 0:00:04]} 79. Qf4 {[%clk 0:00:07]}  Qa4 {[%clk 0:00:04]} 80. Qb8+ {[%clk 0:00:07]}  Kg7 {[%clk 0:00:04]} 81. Qb2+ {[%clk 0:00:07]}  Kg8 {[%clk 0:00:04]} 82. Qe2 {[%clk 0:00:08]}  Qd4+ {[%clk 0:00:04]} 83. Qe3 {[%clk 0:00:09]}  Qb2+ {[%clk 0:00:04]} 84. Kg3 {[%clk 0:00:09]}  Qb1 {[%clk 0:00:05]} 85. Qf2 {[%clk 0:00:09]}  Qb3 {[%clk 0:00:04]} 86. Qh2 {[%clk 0:00:08]}  Qb8+ {[%clk 0:00:05]} 87. Kg2 {[%clk 0:00:08]}  Qb2+ {[%clk 0:00:05]} 88. Kh3 {[%clk 0:00:08]}  Qh8+ {[%clk 0:00:03]} 89. Kg3 {[%clk 0:00:08]}  Qe5+ {[%clk 0:00:04]} 90. Kh3 {[%clk 0:00:08]}  Qh8+ {[%clk 0:00:04]} 91. Kg3 {[%clk 0:00:08]}  Qe5+ {[%clk 0:00:04]} 92. Kg2 {[%clk 0:00:08]}  Qb2+ {[%clk 0:00:04]} 93. Kh1 {[%clk 0:00:08]}  Qb1+ {[%clk 0:00:03]} 94. Kg2 {[%clk 0:00:08]}  Qc2+ {[%clk 0:00:03]} 95. Kh3 {[%clk 0:00:08]}  Qd3 {[%clk 0:00:03]} 96. Qg3 {[%clk 0:00:08]}  Qf1+ {[%clk 0:00:03]} 97. Qg2 {[%clk 0:00:09]}  Qd3 {[%clk 0:00:03]} 98. Kg3 {[%clk 0:00:09]}  Qe3 {[%clk 0:00:03]} 99. Qf1 {[%clk 0:00:08]}  g5 {[%clk 0:00:03]} 100. Qf2 {[%clk 0:00:07]}  Qc1 {[%clk 0:00:02]} 101. Kg2 {[%clk 0:00:06]}  Qf4 {[%clk 0:00:02]} 102. Qg3 {[%clk 0:00:06]}  Qd2+ {[%clk 0:00:02]} 103. Qf2 {[%clk 0:00:07]}  Qd1 {[%clk 0:00:03]} 104. Qg3 {[%clk 0:00:06]}  Qe2+ {[%clk 0:00:03]} 105. Qf2 {[%clk 0:00:07]}  Qd1 {[%clk 0:00:04]} 106. Qg3 {[%clk 0:00:07]}  Qe2+ {[%clk 0:00:04]} 107. Qf2 {[%clk 0:00:08]}  Qd1 {[%clk 0:00:04]} 1/2-1/2


[Site "https://www.chess.com"]

[Event "Titled Tuesday Blitz May 2 Late 2023"]
[White "Adel, Sara"]
[Black "Jaskolka, Tomasz"]
[WhiteFideId "10616764"]
[BlackFideId "1170791"]
[WhiteElo "1982"]
[BlackElo "2155"]
[Result "1-0"]
[Round "01"]
[TimeControl "180+2"]
[Date "2023.05.02"]
[WhiteClock "0:00:00"]
[BlackClock "0:00:00"]

1. e4 {[%clk 0:00:01]}  e6 {[%clk 0:00:01]} 2. d4 {[%clk 0:00:01]}  d5 {[%clk 0:00:01]} 3. Nd2 {[%clk 0:00:01]}  Nf6 {[%clk 0:00:01]} 4. e5 {[%clk 0:00:01]}  Nfd7 {[%clk 0:00:01]} 5. Bd3 {[%clk 0:00:01]}  c5 {[%clk 0:00:01]} 6. c3 {[%clk 0:00:01]}  Nc6 {[%clk 0:00:01]} 7. Ne2 {[%clk 0:00:01]}  cxd4 {[%clk 0:00:01]} 8. cxd4 {[%clk 0:00:01]}  f6 {[%clk 0:00:01]} 9. exf6 {[%clk 0:00:01]}  Nxf6 {[%clk 0:00:01]} 10. O-O {[%clk 0:00:01]}  Bd6 {[%clk 0:00:01]} 11. Nf3 {[%clk 0:00:01]}  Qc7 {[%clk 0:00:01]} 12. Ng3 {[%clk 0:00:01]}  O-O {[%clk 0:00:01]} 13. a3 {[%clk 0:00:01]}  Bd7 {[%clk 0:00:01]} 14. Bg5 {[%clk 0:00:01]}  e5 {[%clk 0:00:01]} 15. dxe5 {[%clk 0:00:01]}  Nxe5 {[%clk 0:00:01]} 16. Rc1 {[%clk 0:00:01]}  Bc6 {[%clk 0:00:01]} 17. Nxe5 {[%clk 0:00:01]}  Bxe5 {[%clk 0:00:01]} 18. Bxf6 {[%clk 0:00:01]}  Rxf6 {[%clk 0:00:01]} 19. b4 {[%clk 0:00:01]}  a6 {[%clk 0:00:01]} 20. Re1 {[%clk 0:00:01]}  Raf8 {[%clk 0:00:01]} 21. Qh5 {[%clk 0:00:01]}  Bf4 {[%clk 0:00:00]} 22. Qxh7+ {[%clk 0:00:00]}  Kf7 {[%clk 0:00:00]} 23. Nh5 {[%clk 0:00:00]}  Be5 {[%clk 0:00:00]} 24. Qxg7+ {[%clk 0:00:00]}  Ke6 {[%clk 0:00:00]} 25. Qxc7 {[%clk 0:00:00]} 1-0


[Site "https://www.chess.com"]

[Event "Titled Tuesday Blitz May 2 Late 2023"]
[White "Sailer, Mike"]
[Black "Karttunen, Mika"]
[WhiteFideId "2012901"]
[BlackFideId "502081"]
[WhiteElo "2109"]
[BlackElo "2396"]
[Result "0-1"]
[Round "01"]
[TimeControl "180+2"]
[Date "2023.05.02"]
[WhiteClock "0:00:00"]
[BlackClock "0:00:00"]

1. d4 {[%clk 0:00:01]}  Nf6 {[%clk 0:00:01]} 2. Bg5 {[%clk 0:00:01]}  Ne4 {[%clk 0:00:01]} 3. Bf4 {[%clk 0:00:01]}  d5 {[%clk 0:00:01]} 4. f3 {[%clk 0:00:01]}  Nf6 {[%clk 0:00:01]} 5. Nc3 {[%clk 0:00:01]}  e6 {[%clk 0:00:01]} 6. e4 {[%clk 0:00:01]}  Bb4 {[%clk 0:00:01]} 7. Bd3 {[%clk 0:00:01]}  O-O {[%clk 0:00:01]} 8. e5 {[%clk 0:00:01]}  Nfd7 {[%clk 0:00:01]} 9. Bd2 {[%clk 0:00:01]}  c5 {[%clk 0:00:01]} 10. f4 {[%clk 0:00:01]}  cxd4 {[%clk 0:00:01]} 11. Nb5 {[%clk 0:00:01]}  Bxd2+ {[%clk 0:00:01]} 12. Qxd2 {[%clk 0:00:01]}  Nc6 {[%clk 0:00:01]} 13. Nf3 {[%clk 0:00:01]}  f6 {[%clk 0:00:01]} 14. exf6 {[%clk 0:00:01]}  Nxf6 {[%clk 0:00:01]} 15. O-O {[%clk 0:00:01]}  Ne4 {[%clk 0:00:01]} 16. Qe2 {[%clk 0:00:01]}  Rxf4 {[%clk 0:00:01]} 17. Nbxd4 {[%clk 0:00:01]}  Qb6 {[%clk 0:00:00]} 18. c3 {[%clk 0:00:01]}  Bd7 {[%clk 0:00:00]} 19. Kh1 {[%clk 0:00:01]}  Raf8 {[%clk 0:00:00]} 20. g3 {[%clk 0:00:00]}  Nxd4 {[%clk 0:00:00]} 21. cxd4 {[%clk 0:00:00]}  R4f6 {[%clk 0:00:00]} 22. Bxe4 {[%clk 0:00:00]}  dxe4 {[%clk 0:00:00]} 23. Ne5 {[%clk 0:00:00]}  Qxd4 {[%clk 0:00:00]} 24. Nxd7 {[%clk 0:00:00]}  Rxf1+ {[%clk 0:00:00]} 25. Rxf1 {[%clk 0:00:00]}  Rxf1+ {[%clk 0:00:00]} 26. Qxf1 {[%clk 0:00:00]}  Qxd7 {[%clk 0:00:00]} 27. Qc4 {[%clk 0:00:00]}  Qd5 {[%clk 0:00:00]} 28. Qc8+ {[%clk 0:00:00]}  Kf7 {[%clk 0:00:00]} 29. Qc7+ {[%clk 0:00:00]}  Kg6 {[%clk 0:00:00]} 30. Qe7 {[%clk 0:00:00]}  e3+ {[%clk 0:00:00]} 31. Kg1 {[%clk 0:00:00]}  Qf5 {[%clk 0:00:00]} 32. Qe8+ {[%clk 0:00:00]}  Kh6 {[%clk 0:00:00]} 33. Kg2 {[%clk 0:00:00]}  e2 {[%clk 0:00:00]} 34. Qd8 {[%clk 0:00:00]}  e1=Q {[%clk 0:00:00]} 35. Qh4+ {[%clk 0:00:00]}  Kg6 {[%clk 0:00:00]} 0-1


[Site "https://www.chess.com"]